{"text_format":"1","workbook":"xlsx","n_sheets":3,"sheets":["Overview","Activity Template","Database"],"not_rendered":{"charts":0,"images":1,"macros":1,"external_links":0,"defined_names":1,"comments":0,"pivot_tables":0},"unopened":[],"bounds":{"document_bytes":16777216,"sheet_cells":100000,"rows_first":2000,"rows_last":500,"rows_between":2000,"halvings":0,"cell_chars":16384,"cell_head_chars":4096},"cells_cut":0,"cells_raw":0,"read":"whole","date_system":"1900"}

{"sheet":"Overview","index":0,"n_rows":18,"n_cols":2,"rows_kept":18,"cut":false,"hidden":false,"merged":[]}
[]
[null,"Icon Activity Database"]
[]
[null,"INSTRUCTIONS"]
[null,"General: Anything with a blue box is editable. Anything without a blue box and blue text should NOT be edited."]
[null,"Properties: you can customize the dimensions of wellness by editing the below boxes"]
[null,"Database: Create one page overviews for activities by clicking the create activity button."]
[]
[null,"Do NOT edit the sample Activity Template Page."]
[]
[null,"Dimensions of Wellness:"]
[null,"Physical"]
[null,"Emotional"]
[null,"Environmental"]
[]
[null,"Cognitive/Intellectual:"]
[null,"Social:"]
[null,"Professional/Vocational:"]

{"sheet":"Activity Template","index":1,"n_rows":54,"n_cols":6,"rows_kept":54,"cut":false,"hidden":false,"merged":[[15,2,17,6],[29,2,31,6],[20,2,26,6],[45,2,47,6]]}
[]
[]
[null,null,null,"Activity Overview"]
[]
[]
[null,null,"ACTIVITY NAME: "]
[]
[null,null,"Duration (Minutes):",null,null,"Location:"]
[null,null,"Staff Required:",null,null,"Type:"]
[null,null,"Short Description:",null,null,"Category:"]
[]
[null,null,"Manimum Number of Participants:"]
[null,null,"Minimum Number of Participants:"]
[]
[null,null,"Objective(s) of Activity:"]
[]
[]
[]
[]
[null,null,"Activity Overview:"]
[]
[]
[]
[]
[]
[]
[]
[]
[null,null,"Equipment & Supplies Required:"]
[]
[]
[]
[]
[null,null,"Appropriate for:"]
[null,null,"1. Visually-Impaired:",null,null,"8. Other Physical Limitations"]
[null,null,"2. Hearing-Impaired:",null,null,"9. Minimal fine motor ability"]
[null,null,"3. Moderate Cognitive",null,null,"10. Aggressive/Disruptive Behavior:"]
[null,null,"Impairements/Dementias",null,null,"11. Other Antisocial Behavior"]
[null,null,"4. Advanced Dementias:",null,null,"12. Alert and Independent:"]
[null,null,"5. Terminlly Ill:",null,null,"13. Physically Active:"]
[null,null,"6. Withdrawn or Isolated:",null,null,"14. Socially Active:"]
[null,null,"7. Walking Difficulties",null,null,"15. Speakers of any language"]
[null,null,"Other physical & social requirements:"]
[]
[null,null,"Possible Adaptations:"]
[]
[]
[]
[]
[null,null,"Dimensions of Wellness:"]
[null,null,{"$f":"Overview!$B$12","v":"Physical"},null,null,{"$f":"Overview!B16","v":"Cognitive/Intellectual:"}]
[null,null,{"$f":"Overview!$B$13","v":"Emotional"},null,null,{"$f":"Overview!B17","v":"Social:"}]
[null,null,{"$f":"Overview!$B$14","v":"Environmental"},null,null,{"$f":"Overview!B18","v":"Professional/Vocational:"}]
[null,null,{"$f":"Overview!$B$15","v":0},null,null,{"$f":"Overview!B19","v":0}]

{"sheet":"Database","index":2,"n_rows":30,"n_cols":6,"rows_kept":30,"cut":false,"hidden":false,"merged":[]}
[]
[]
[null,null,"Activity Database"]
[]
[]
[null,"Activity:","Category:","Type:","Description:","Duration (Minutes):"]
[null,{"$f":"IFERROR(INDEX(ListSheets,ROW(B4)),\"\")","v":""},{"$f":"IFERROR(INDIRECT(\"'\"&Table2[[#This Row],[Activity:]]&\"'!G10\"),\"\")","v":""},{"$f":"IFERROR(INDIRECT(\"'\"&Table2[[#This Row],[Activity:]]&\"'!G9\"),\"\")","v":""},{"$f":"IFERROR(INDIRECT(\"'\"&Table2[[#This Row],[Activity:]]&\"'!D10\"),\"\")","v":""},{"$f":"IFERROR(INDIRECT(\"'\"&Table2[[#This Row],[Activity:]]&\"'!D7\"),\"\")","v":""}]
[null,{"$f":"IFERROR(INDEX(ListSheets,ROW(B5)),\"\")","v":""},{"$f":"IFERROR(INDIRECT(\"'\"&Table2[[#This Row],[Activity:]]&\"'!G10\"),\"\")","v":""},{"$f":"IFERROR(INDIRECT(\"'\"&Table2[[#This Row],[Activity:]]&\"'!G9\"),\"\")","v":""},{"$f":"IFERROR(INDIRECT(\"'\"&Table2[[#This Row],[Activity:]]&\"'!D10\"),\"\")","v":""},{"$f":"IFERROR(INDIRECT(\"'\"&Table2[[#This Row],[Activity:]]&\"'!D7\"),\"\")","v":""}]
[null,{"$f":"IFERROR(INDEX(ListSheets,ROW(B6)),\"\")","v":""},{"$f":"IFERROR(INDIRECT(\"'\"&Table2[[#This Row],[Activity:]]&\"'!G10\"),\"\")","v":""},{"$f":"IFERROR(INDIRECT(\"'\"&Table2[[#This Row],[Activity:]]&\"'!G9\"),\"\")","v":""},{"$f":"IFERROR(INDIRECT(\"'\"&Table2[[#This Row],[Activity:]]&\"'!D10\"),\"\")","v":""},{"$f":"IFERROR(INDIRECT(\"'\"&Table2[[#This Row],[Activity:]]&\"'!D7\"),\"\")","v":""}]
[null,{"$f":"IFERROR(INDEX(ListSheets,ROW(B7)),\"\")","v":""},{"$f":"IFERROR(INDIRECT(\"'\"&Table2[[#This Row],[Activity:]]&\"'!G10\"),\"\")","v":""},{"$f":"IFERROR(INDIRECT(\"'\"&Table2[[#This Row],[Activity:]]&\"'!G9\"),\"\")","v":""},{"$f":"IFERROR(INDIRECT(\"'\"&Table2[[#This Row],[Activity:]]&\"'!D10\"),\"\")","v":""},{"$f":"IFERROR(INDIRECT(\"'\"&Table2[[#This Row],[Activity:]]&\"'!D7\"),\"\")","v":""}]
[null,{"$f":"IFERROR(INDEX(ListSheets,ROW(B8)),\"\")","v":""},{"$f":"IFERROR(INDIRECT(\"'\"&Table2[[#This Row],[Activity:]]&\"'!G10\"),\"\")","v":""},{"$f":"IFERROR(INDIRECT(\"'\"&Table2[[#This Row],[Activity:]]&\"'!G9\"),\"\")","v":""},{"$f":"IFERROR(INDIRECT(\"'\"&Table2[[#This Row],[Activity:]]&\"'!D10\"),\"\")","v":""},{"$f":"IFERROR(INDIRECT(\"'\"&Table2[[#This Row],[Activity:]]&\"'!D7\"),\"\")","v":""}]
[null,{"$f":"IFERROR(INDEX(ListSheets,ROW(B9)),\"\")","v":""},{"$f":"IFERROR(INDIRECT(\"'\"&Table2[[#This Row],[Activity:]]&\"'!G10\"),\"\")","v":""},{"$f":"IFERROR(INDIRECT(\"'\"&Table2[[#This Row],[Activity:]]&\"'!G9\"),\"\")","v":""},{"$f":"IFERROR(INDIRECT(\"'\"&Table2[[#This Row],[Activity:]]&\"'!D10\"),\"\")","v":""},{"$f":"IFERROR(INDIRECT(\"'\"&Table2[[#This Row],[Activity:]]&\"'!D7\"),\"\")","v":""}]
[null,{"$f":"IFERROR(INDEX(ListSheets,ROW(B10)),\"\")","v":""},{"$f":"IFERROR(INDIRECT(\"'\"&Table2[[#This Row],[Activity:]]&\"'!G10\"),\"\")","v":""},{"$f":"IFERROR(INDIRECT(\"'\"&Table2[[#This Row],[Activity:]]&\"'!G9\"),\"\")","v":""},{"$f":"IFERROR(INDIRECT(\"'\"&Table2[[#This Row],[Activity:]]&\"'!D10\"),\"\")","v":""},{"$f":"IFERROR(INDIRECT(\"'\"&Table2[[#This Row],[Activity:]]&\"'!D7\"),\"\")","v":""}]
[null,{"$f":"IFERROR(INDEX(ListSheets,ROW(B11)),\"\")","v":""},{"$f":"IFERROR(INDIRECT(\"'\"&Table2[[#This Row],[Activity:]]&\"'!G10\"),\"\")","v":""},{"$f":"IFERROR(INDIRECT(\"'\"&Table2[[#This Row],[Activity:]]&\"'!G9\"),\"\")","v":""},{"$f":"IFERROR(INDIRECT(\"'\"&Table2[[#This Row],[Activity:]]&\"'!D10\"),\"\")","v":""},{"$f":"IFERROR(INDIRECT(\"'\"&Table2[[#This Row],[Activity:]]&\"'!D7\"),\"\")","v":""}]
[null,{"$f":"IFERROR(INDEX(ListSheets,ROW(B12)),\"\")","v":""},{"$f":"IFERROR(INDIRECT(\"'\"&Table2[[#This Row],[Activity:]]&\"'!G10\"),\"\")","v":""},{"$f":"IFERROR(INDIRECT(\"'\"&Table2[[#This Row],[Activity:]]&\"'!G9\"),\"\")","v":""},{"$f":"IFERROR(INDIRECT(\"'\"&Table2[[#This Row],[Activity:]]&\"'!D10\"),\"\")","v":""},{"$f":"IFERROR(INDIRECT(\"'\"&Table2[[#This Row],[Activity:]]&\"'!D7\"),\"\")","v":""}]
[null,{"$f":"IFERROR(INDEX(ListSheets,ROW(B13)),\"\")","v":""},{"$f":"IFERROR(INDIRECT(\"'\"&Table2[[#This Row],[Activity:]]&\"'!G10\"),\"\")","v":""},{"$f":"IFERROR(INDIRECT(\"'\"&Table2[[#This Row],[Activity:]]&\"'!G9\"),\"\")","v":""},{"$f":"IFERROR(INDIRECT(\"'\"&Table2[[#This Row],[Activity:]]&\"'!D10\"),\"\")","v":""},{"$f":"IFERROR(INDIRECT(\"'\"&Table2[[#This Row],[Activity:]]&\"'!D7\"),\"\")","v":""}]
[null,{"$f":"IFERROR(INDEX(ListSheets,ROW(B14)),\"\")","v":""},{"$f":"IFERROR(INDIRECT(\"'\"&Table2[[#This Row],[Activity:]]&\"'!G10\"),\"\")","v":""},{"$f":"IFERROR(INDIRECT(\"'\"&Table2[[#This Row],[Activity:]]&\"'!G9\"),\"\")","v":""},{"$f":"IFERROR(INDIRECT(\"'\"&Table2[[#This Row],[Activity:]]&\"'!D10\"),\"\")","v":""},{"$f":"IFERROR(INDIRECT(\"'\"&Table2[[#This Row],[Activity:]]&\"'!D7\"),\"\")","v":""}]
[null,{"$f":"IFERROR(INDEX(ListSheets,ROW(B15)),\"\")","v":""},{"$f":"IFERROR(INDIRECT(\"'\"&Table2[[#This Row],[Activity:]]&\"'!G10\"),\"\")","v":""},{"$f":"IFERROR(INDIRECT(\"'\"&Table2[[#This Row],[Activity:]]&\"'!G9\"),\"\")","v":""},{"$f":"IFERROR(INDIRECT(\"'\"&Table2[[#This Row],[Activity:]]&\"'!D10\"),\"\")","v":""},{"$f":"IFERROR(INDIRECT(\"'\"&Table2[[#This Row],[Activity:]]&\"'!D7\"),\"\")","v":""}]
[null,{"$f":"IFERROR(INDEX(ListSheets,ROW(B16)),\"\")","v":""},{"$f":"IFERROR(INDIRECT(\"'\"&Table2[[#This Row],[Activity:]]&\"'!G10\"),\"\")","v":""},{"$f":"IFERROR(INDIRECT(\"'\"&Table2[[#This Row],[Activity:]]&\"'!G9\"),\"\")","v":""},{"$f":"IFERROR(INDIRECT(\"'\"&Table2[[#This Row],[Activity:]]&\"'!D10\"),\"\")","v":""},{"$f":"IFERROR(INDIRECT(\"'\"&Table2[[#This Row],[Activity:]]&\"'!D7\"),\"\")","v":""}]
[null,{"$f":"IFERROR(INDEX(ListSheets,ROW(B17)),\"\")","v":""},{"$f":"IFERROR(INDIRECT(\"'\"&Table2[[#This Row],[Activity:]]&\"'!G10\"),\"\")","v":""},{"$f":"IFERROR(INDIRECT(\"'\"&Table2[[#This Row],[Activity:]]&\"'!G9\"),\"\")","v":""},{"$f":"IFERROR(INDIRECT(\"'\"&Table2[[#This Row],[Activity:]]&\"'!D10\"),\"\")","v":""},{"$f":"IFERROR(INDIRECT(\"'\"&Table2[[#This Row],[Activity:]]&\"'!D7\"),\"\")","v":""}]
[null,{"$f":"IFERROR(INDEX(ListSheets,ROW(B18)),\"\")","v":""},{"$f":"IFERROR(INDIRECT(\"'\"&Table2[[#This Row],[Activity:]]&\"'!G10\"),\"\")","v":""},{"$f":"IFERROR(INDIRECT(\"'\"&Table2[[#This Row],[Activity:]]&\"'!G9\"),\"\")","v":""},{"$f":"IFERROR(INDIRECT(\"'\"&Table2[[#This Row],[Activity:]]&\"'!D10\"),\"\")","v":""},{"$f":"IFERROR(INDIRECT(\"'\"&Table2[[#This Row],[Activity:]]&\"'!D7\"),\"\")","v":""}]
[null,{"$f":"IFERROR(INDEX(ListSheets,ROW(B19)),\"\")","v":""},{"$f":"IFERROR(INDIRECT(\"'\"&Table2[[#This Row],[Activity:]]&\"'!G10\"),\"\")","v":""},{"$f":"IFERROR(INDIRECT(\"'\"&Table2[[#This Row],[Activity:]]&\"'!G9\"),\"\")","v":""},{"$f":"IFERROR(INDIRECT(\"'\"&Table2[[#This Row],[Activity:]]&\"'!D10\"),\"\")","v":""},{"$f":"IFERROR(INDIRECT(\"'\"&Table2[[#This Row],[Activity:]]&\"'!D7\"),\"\")","v":""}]
[null,{"$f":"IFERROR(INDEX(ListSheets,ROW(B20)),\"\")","v":""},{"$f":"IFERROR(INDIRECT(\"'\"&Table2[[#This Row],[Activity:]]&\"'!G10\"),\"\")","v":""},{"$f":"IFERROR(INDIRECT(\"'\"&Table2[[#This Row],[Activity:]]&\"'!G9\"),\"\")","v":""},{"$f":"IFERROR(INDIRECT(\"'\"&Table2[[#This Row],[Activity:]]&\"'!D10\"),\"\")","v":""},{"$f":"IFERROR(INDIRECT(\"'\"&Table2[[#This Row],[Activity:]]&\"'!D7\"),\"\")","v":""}]
[null,{"$f":"IFERROR(INDEX(ListSheets,ROW(B21)),\"\")","v":""},{"$f":"IFERROR(INDIRECT(\"'\"&Table2[[#This Row],[Activity:]]&\"'!G10\"),\"\")","v":""},{"$f":"IFERROR(INDIRECT(\"'\"&Table2[[#This Row],[Activity:]]&\"'!G9\"),\"\")","v":""},{"$f":"IFERROR(INDIRECT(\"'\"&Table2[[#This Row],[Activity:]]&\"'!D10\"),\"\")","v":""},{"$f":"IFERROR(INDIRECT(\"'\"&Table2[[#This Row],[Activity:]]&\"'!D7\"),\"\")","v":""}]
[null,{"$f":"IFERROR(INDEX(ListSheets,ROW(B22)),\"\")","v":""},{"$f":"IFERROR(INDIRECT(\"'\"&Table2[[#This Row],[Activity:]]&\"'!G10\"),\"\")","v":""},{"$f":"IFERROR(INDIRECT(\"'\"&Table2[[#This Row],[Activity:]]&\"'!G9\"),\"\")","v":""},{"$f":"IFERROR(INDIRECT(\"'\"&Table2[[#This Row],[Activity:]]&\"'!D10\"),\"\")","v":""},{"$f":"IFERROR(INDIRECT(\"'\"&Table2[[#This Row],[Activity:]]&\"'!D7\"),\"\")","v":""}]
[null,{"$f":"IFERROR(INDEX(ListSheets,ROW(B23)),\"\")","v":""},{"$f":"IFERROR(INDIRECT(\"'\"&Table2[[#This Row],[Activity:]]&\"'!G10\"),\"\")","v":""},{"$f":"IFERROR(INDIRECT(\"'\"&Table2[[#This Row],[Activity:]]&\"'!G9\"),\"\")","v":""},{"$f":"IFERROR(INDIRECT(\"'\"&Table2[[#This Row],[Activity:]]&\"'!D10\"),\"\")","v":""},{"$f":"IFERROR(INDIRECT(\"'\"&Table2[[#This Row],[Activity:]]&\"'!D7\"),\"\")","v":""}]
[null,{"$f":"IFERROR(INDEX(ListSheets,ROW(B24)),\"\")","v":""},{"$f":"IFERROR(INDIRECT(\"'\"&Table2[[#This Row],[Activity:]]&\"'!G10\"),\"\")","v":""},{"$f":"IFERROR(INDIRECT(\"'\"&Table2[[#This Row],[Activity:]]&\"'!G9\"),\"\")","v":""},{"$f":"IFERROR(INDIRECT(\"'\"&Table2[[#This Row],[Activity:]]&\"'!D10\"),\"\")","v":""},{"$f":"IFERROR(INDIRECT(\"'\"&Table2[[#This Row],[Activity:]]&\"'!D7\"),\"\")","v":""}]
[null,{"$f":"IFERROR(INDEX(ListSheets,ROW(B25)),\"\")","v":""},{"$f":"IFERROR(INDIRECT(\"'\"&Table2[[#This Row],[Activity:]]&\"'!G10\"),\"\")","v":""},{"$f":"IFERROR(INDIRECT(\"'\"&Table2[[#This Row],[Activity:]]&\"'!G9\"),\"\")","v":""},{"$f":"IFERROR(INDIRECT(\"'\"&Table2[[#This Row],[Activity:]]&\"'!D10\"),\"\")","v":""},{"$f":"IFERROR(INDIRECT(\"'\"&Table2[[#This Row],[Activity:]]&\"'!D7\"),\"\")","v":""}]
[null,{"$f":"IFERROR(INDEX(ListSheets,ROW(B26)),\"\")","v":""},{"$f":"IFERROR(INDIRECT(\"'\"&Table2[[#This Row],[Activity:]]&\"'!G10\"),\"\")","v":""},{"$f":"IFERROR(INDIRECT(\"'\"&Table2[[#This Row],[Activity:]]&\"'!G9\"),\"\")","v":""},{"$f":"IFERROR(INDIRECT(\"'\"&Table2[[#This Row],[Activity:]]&\"'!D10\"),\"\")","v":""},{"$f":"IFERROR(INDIRECT(\"'\"&Table2[[#This Row],[Activity:]]&\"'!D7\"),\"\")","v":""}]
[null,{"$f":"IFERROR(INDEX(ListSheets,ROW(B27)),\"\")","v":""},{"$f":"IFERROR(INDIRECT(\"'\"&Table2[[#This Row],[Activity:]]&\"'!G10\"),\"\")","v":""},{"$f":"IFERROR(INDIRECT(\"'\"&Table2[[#This Row],[Activity:]]&\"'!G9\"),\"\")","v":""},{"$f":"IFERROR(INDIRECT(\"'\"&Table2[[#This Row],[Activity:]]&\"'!D10\"),\"\")","v":""},{"$f":"IFERROR(INDIRECT(\"'\"&Table2[[#This Row],[Activity:]]&\"'!D7\"),\"\")","v":""}]